fUSD/lending_fUSD_20241224
["ID","MTS","AMOUNT","RATE_DAILY","PERIOD"]
[346552306,1735080631667,-7587.70649515,0.00011686,2]
[346552307,1735080631678,-3427.08347967,0.00011686,2]
[346552308,1735080631690,-12885.21002518,0.00011686,2]
[346552309,1735080631700,-250.0,0.00011691,2]
[346552310,1735080631710,-1500.0,0.00011698,2]
[346552311,1735080631719,-150.0,0.00011699,2]
[346552312,1735080631728,-1000.0,0.00011719,2]
[346552313,1735080631738,-791.39,0.00011799,2]
[346552314,1735080631748,-2000.0,0.000119,4]
[346552315,1735080631757,-581.81,0.00011911,2]
[346552316,1735080631767,-971.07,0.00011978,2]
[346552317,1735080631776,-456.50838147,0.00011999,2]
[346552318,1735080631786,-20000.0,0.00012,2]
[346552319,1735080631795,-365.25,0.00012,2]
[346552320,1735080631806,-4000.0,0.00012,4]
[346552321,1735080631816,-167.34,0.00012041,2]
[346552322,1735080631825,-6000.0,0.000121,4]
[346552323,1735080631834,-365.25,0.00012178,2]
[346552324,1735080631844,-8000.0,0.000122,4]
[346552325,1735080631854,-302.73116437,0.00012268,2]
[346552326,1735080631863,-10100.0,0.000123,4]
[346552327,1735080631873,-484.14,0.0001235,2]
[346552328,1735080631882,-2000.0,0.000124,4]
[346552329,1735080631892,-2000.0,0.000125,4]
[346552330,1735080631901,-2000.0,0.000126,4]
[346552332,1735080631911,-2000.0,0.000127,4]
[346552333,1735080631920,-500.0,0.00012712,2]
[346552336,1735080631930,-2513.0,0.0001274,2]
[346552337,1735080631940,-2354.0,0.000128,4]
[346552338,1735080631949,-150.0,0.00012835,2]
[346552340,1735080631958,-1116.267,0.00012876,2]
[346552342,1735080631968,-800.0,0.00012876,2]
[346552344,1735080631977,-9590.0,0.00012878,2]
[346552346,1735080631986,-150.0,0.00012878,2]
[346552348,1735080631996,-2000.0,0.00012896,2]
[346552350,1735080632004,-200.0,0.00012896,2]
[346552351,1735080632013,-161.22684004,0.00012898,2]
[346552353,1735080632023,-446.67449031,0.00012898,2]
[346552355,1735080632032,-446.6744903,0.00012898,2]
[346552356,1735080632042,-446.6744903,0.00012898,2]
[346552357,1735080632051,-446.6744903,0.00012899,2]
[346552358,1735080632060,-446.6744903,0.00012899,2]
[346552359,1735080632071,-5000.0,0.00012899,2]
[346552360,1735080632080,-446.6744903,0.00012899,2]
[346552361,1735080632093,-446.6744903,0.00012899,2]
[346552362,1735080632103,-446.6744903,0.000129,2]
[346552363,1735080632112,-446.6744903,0.000129,2]
[346552364,1735080632121,-4421.2967,0.000129,2]
[346552365,1735080632131,-858.9153,0.000129,2]
[346552366,1735080632142,-3185.48951622,0.000129,2]
[346552367,1735080632151,-446.6744903,0.000129,2]
[346552368,1735080632161,-49846.71338263,0.000129,2]
[346552369,1735080632172,-507.31770396,0.00012973,2]
[346552370,1735080632182,-500.0,0.00012973,2]
[346552371,1735080632192,-3380.74,0.00012995,2]
[346552372,1735080632201,-3843.5,0.00012995,2]
[346552373,1735080632211,-1482.92,0.00012995,2]
[346552375,1735080632221,-4211.71,0.00012996,2]
[346552377,1735080632230,-3885.1,0.00012996,2]
[346552379,1735080632240,-500.0,0.00012996,2]
[346552381,1735080632249,-500.0,0.00012996,2]
[346552383,1735080632259,-500.0,0.00012996,2]
[346552385,1735080632268,-500.0,0.00012996,2]
[346552387,1735080632278,-500.0,0.00012996,2]
[346552389,1735080632287,-500.0,0.00012996,2]
[346552390,1735080632296,-500.0,0.00012996,2]
[346552392,1735080632306,-500.0,0.00012996,2]
[346552394,1735080632315,-500.0,0.00012996,2]
[346552397,1735080632325,-500.0,0.00012996,2]
[346552399,1735080632336,-500.0,0.00012996,2]
[346552401,1735080632347,-254.63635664,0.00012996,2]
[346552403,1735080632357,-194.64020175,0.00012996,2]
[346552405,1735080632366,-347.90008452,0.00012996,2]
[346552407,1735080632375,-500.0,0.00012996,2]
[346552409,1735080632385,-500.0,0.00012996,2]
[346552411,1735080632394,-500.0,0.00012996,2]
[346552413,1735080632403,-500.0,0.00012996,2]
[346552415,1735080632412,-500.0,0.00012996,2]
[346552417,1735080632422,-500.0,0.00012996,2]
[346552419,1735080632432,-500.0,0.00012996,2]
[346552421,1735080632442,-500.0,0.00012996,2]
[346552423,1735080632451,-500.0,0.00012996,2]
[346552425,1735080632461,-500.0,0.00012996,2]
[346552426,1735080632471,-500.0,0.00012996,2]
[346552428,1735080632481,-500.0,0.00012996,2]
[346552430,1735080632492,-500.0,0.00012996,2]
[346552432,1735080632502,-500.0,0.00012996,2]
[346552435,1735080632512,-500.0,0.00012996,2]
[346552436,1735080632523,-500.0,0.00012996,2]
[346552439,1735080632532,-500.0,0.00012996,2]
[346552441,1735080632542,-500.0,0.00012996,2]
[346552443,1735080632552,-500.0,0.00012996,2]
[346552445,1735080632561,-500.0,0.00012996,2]
[346552447,1735080632571,-500.0,0.00012996,2]
[346552465,1735080632722,-500.0,0.00012996,2]
[346552468,1735080632764,-500.0,0.00012996,2]
[346552470,1735080632774,-500.0,0.00012996,2]
[346552472,1735080632784,-500.0,0.00012996,2]
[346552474,1735080632793,-500.0,0.00012996,2]
[346552476,1735080632802,-507.72325824,0.00012996,2]
[346552479,1735080632812,-500.0,0.00012996,2]
[346552480,1735080632822,-500.0,0.00012996,2]
[346552482,1735080632831,-500.0,0.00012996,2]
[346552484,1735080632840,-500.0,0.00012996,2]
[346552486,1735080632850,-500.0,0.00012996,2]
[346552489,1735080632859,-500.0,0.00012996,2]
[346552490,1735080632868,-500.0,0.00012996,2]
[346552492,1735080632877,-500.0,0.00012996,2]
[346552495,1735080632888,-6544.98,0.00012996,2]
[346552497,1735080632897,-1627.33,0.00012996,2]
[346552499,1735080632906,-500.0,0.00012996,2]
[346552501,1735080632915,-500.0,0.00012996,2]
[346552502,1735080632925,-500.0,0.00012996,2]
[346552504,1735080632934,-500.0,0.00012996,2]
[346552506,1735080632943,-500.0,0.00012996,2]
[346552508,1735080632952,-500.0,0.00012996,2]
[346552511,1735080632962,-500.0,0.00012996,2]
[346552512,1735080632971,-500.0,0.00012996,2]
[346552514,1735080632980,-499.99999999,0.00012996,2]
[346552516,1735080632989,-563.83,0.00012996,2]
[346552518,1735080632998,-9954.39,0.00012996,2]
[346552521,1735080633009,-10096.12,0.00012996,2]
[346552523,1735080633018,-1902.12,0.00012996,2]
[346552525,1735080633028,-5631.06,0.00012996,2]
[346552527,1735080633037,-30406.88,0.00012996,2]
[346552529,1735080633048,-592.25995461,0.00012996,2]
[346552531,1735080633057,-9407.23,0.00012996,2]
[346552533,1735080633068,-6357.07,0.00012996,2]
[346552535,1735080633078,-6845.01,0.00012996,2]
[346552536,1735080633090,-17399.48,0.00012996,2]
[346552538,1735080633101,-3392.7,0.00012996,2]
[346552541,1735080633111,-4298.03,0.00012996,2]
[346552543,1735080633120,-13420.77,0.00012996,2]
[346552544,1735080633130,-27573.59,0.00012996,2]
[346552545,1735080633139,-1707.4,0.00012996,2]
[346552546,1735080633149,-5751.18,0.00012996,2]
[346552547,1735080633159,-843.23,0.00012997,2]
[346552548,1735080633169,-500.0,0.00012997,2]
[346552549,1735080633178,-1058.62,0.00012997,2]
[346552550,1735080633188,-500.0,0.00012997,2]
[346552551,1735080633197,-500.0,0.00012997,2]
[346552552,1735080633207,-1544.96,0.00012997,2]
[346552553,1735080633217,-500.23072955,0.00012997,2]
[346552554,1735080633226,-610.13,0.00012997,2]
[346552555,1735080633235,-500.0,0.00012997,2]
[346552556,1735080633245,-936.66,0.00012997,2]
[346552557,1735080633254,-500.0,0.00012997,2]
[346552558,1735080633264,-500.0,0.00012997,2]
[346552559,1735080633273,-500.0,0.00012997,2]
[346552560,1735080633282,-568.91,0.00012997,2]
[346552561,1735080633291,-500.0,0.00012997,2]
[346552562,1735080633301,-775.2,0.00012997,2]
[346552563,1735080633310,-500.0,0.00012997,2]
[346552564,1735080633320,-1109.19,0.00012997,2]
[346552565,1735080633329,-500.0,0.00012997,2]
[346552566,1735080633339,-1443.93,0.00012997,2]
[346552567,1735080633348,-500.0,0.00012997,2]
[346552568,1735080633357,-500.0,0.00012997,2]
[346552569,1735080633367,-500.0,0.00012997,2]
[346552570,1735080633376,-500.0,0.00012997,2]
[346552571,1735080633385,-500.0,0.00012997,2]
[346552572,1735080633395,-500.0,0.00012997,2]
[346552573,1735080633404,-500.0,0.00012997,2]
[346552574,1735080633413,-501.0184503,0.00012997,2]
[346552575,1735080633423,-500.0,0.00012997,2]
[346552576,1735080633433,-500.0,0.00012997,2]
[346552577,1735080633442,-880.54,0.00012997,2]
[346552578,1735080633451,-500.0,0.00012997,2]
[346552579,1735080633460,-500.77,0.00012997,2]
[346552580,1735080633469,-903.88,0.00012997,2]
[346552581,1735080633478,-500.0,0.00012997,2]
[346552582,1735080633487,-500.0,0.00012997,2]
[346552583,1735080633496,-500.0,0.00012997,2]
[346552584,1735080633505,-2161.23,0.00012997,2]
[346552585,1735080633515,-500.0,0.00012997,2]
[346552586,1735080633524,-500.0,0.00012997,2]
[346552587,1735080633534,-500.0,0.00012997,2]
[346552588,1735080633544,-500.0,0.00012997,2]
[346552589,1735080633553,-500.0,0.00012997,2]
[346552590,1735080633562,-1934.45,0.00012997,2]
[346552591,1735080633572,-1057.54,0.00012997,2]
[346552592,1735080633581,-500.0,0.00012997,2]
[346552593,1735080633591,-622.5,0.00012997,2]
[346552594,1735080633599,-500.0,0.00012997,2]
[346552595,1735080633609,-500.0,0.00012997,2]
[346552596,1735080633619,-500.0,0.00012997,2]
[346552597,1735080633628,-500.0,0.00012997,2]
[346552598,1735080633638,-500.0,0.00012997,2]
[346552599,1735080633647,-574.21806609,0.00012997,2]
[346552600,1735080633656,-561.09,0.00012997,2]
[346552601,1735080633665,-500.0,0.00012997,2]
[346552602,1735080633673,-5740.86,0.00012997,2]
[346552603,1735080633682,-500.0,0.00012997,2]
[346552604,1735080633691,-500.0,0.00012997,2]
[346552605,1735080633700,-749.64,0.00012997,2]
[346552606,1735080633709,-500.0,0.00012997,2]
[346552607,1735080633718,-1168.27,0.00012997,2]
[346552608,1735080633728,-655.64,0.00012997,2]
[346552609,1735080633738,-23465.66,0.00012997,2]
[346552610,1735080633748,-500.0,0.00012997,2]
[346552611,1735080633757,-500.0,0.00012997,2]
[346552612,1735080633766,-500.0,0.00012997,2]
[346552613,1735080633776,-4105.1,0.00012997,2]
[346552614,1735080633785,-603.162832,0.00012997,2]
[346552615,1735080633795,-500.0,0.00012997,2]
[346552616,1735080633804,-500.0,0.00012997,2]
[346552617,1735080633814,-500.0,0.00012997,2]
[346552618,1735080633824,-500.0,0.00012997,2]
[346552619,1735080633834,-500.0,0.00012997,2]
[346552620,1735080633844,-500.0,0.00012997,2]
[346552621,1735080633853,-1513.1,0.00012997,2]
[346552622,1735080633863,-500.0,0.00012997,2]
[346552623,1735080633872,-2788.14,0.00012997,2]
[346552624,1735080633882,-721.05,0.00012997,2]
[346552625,1735080633892,-500.0,0.00012997,2]
[346552626,1735080633901,-154.936045,0.00012997,2]
[346552627,1735080633911,-154.669237,0.00012997,2]
[346552628,1735080633921,-3099.535145,0.00012997,2]
[346552629,1735080633930,-500.0,0.00012997,2]
[346552630,1735080633940,-500.0,0.00012997,2]
[346552631,1735080633950,-585.82,0.00012997,2]
[346552632,1735080633959,-3332.603699,0.00012997,2]
[346552633,1735080633968,-696.56,0.00012997,2]
[346552634,1735080633978,-500.0,0.00012997,2]
[346552635,1735080633987,-5302.95,0.00012997,2]
[346552636,1735080633996,-500.0,0.00012997,2]
[346552637,1735080634006,-500.0,0.00012997,2]
[346552638,1735080634015,-5858.01,0.00012997,2]
[346552639,1735080634024,-500.0,0.00012997,2]
[346552640,1735080634034,-500.0,0.00012997,2]
[346552641,1735080634043,-500.0,0.00012997,2]
[346552642,1735080634053,-500.0,0.00012997,2]
[346552643,1735080634064,-8547.33,0.00012997,2]
[346552644,1735080634074,-500.0,0.00012997,2]
[346552645,1735080634084,-500.0,0.00012997,2]
[346552646,1735080634102,-500.0,0.00012997,2]
[346552647,1735080634111,-2629.21,0.00012997,2]
[346552648,1735080634121,-500.0,0.00012997,2]
[346552649,1735080634131,-500.0,0.00012997,2]
[346552650,1735080634141,-34000.02,0.00012997,2]
[346552651,1735080634150,-500.0,0.00012997,2]
[346552652,1735080634159,-196.55898147,0.00012997,2]
[346552653,1735080634169,-500.0,0.00012997,2]
[346552654,1735080634179,-5564.11,0.00012997,2]
[346552655,1735080634188,-500.0,0.00012997,2]
[346552656,1735080634197,-500.0,0.00012997,2]
[346552657,1735080634208,-689.49,0.00012997,2]
[346552658,1735080634218,-501.21950083,0.00012997,2]
[346552659,1735080634227,-500.0,0.00012997,2]
[346552660,1735080634236,-500.0,0.00012997,2]
[346552661,1735080634245,-500.0,0.00012997,2]
[346552662,1735080634255,-3145.74,0.00012997,2]
[346552663,1735080634265,-500.0,0.00012997,2]
[346552664,1735080634274,-500.0,0.00012997,2]
[346552665,1735080634284,-506.82118548,0.00012997,2]
[346552666,1735080634293,-169.855394,0.00012997,2]
[346552667,1735080634303,-500.0,0.00012997,2]
[346552668,1735080634312,-500.0,0.00012997,2]
[346552669,1735080634323,-500.0,0.00012997,2]
[346552670,1735080634332,-545.05,0.00012997,2]
[346552671,1735080634343,-500.0,0.00012997,2]
[346552672,1735080634353,-1215.69,0.00012997,2]
[346552673,1735080634362,-500.0,0.00012997,2]
[346552674,1735080634372,-4565.35,0.00012997,2]
[346552675,1735080634381,-564.14,0.00012997,2]
[346552676,1735080634390,-500.0,0.00012997,2]
[346552677,1735080634400,-500.0,0.00012997,2]
[346552678,1735080634409,-838.45,0.00012997,2]
[346552679,1735080634418,-500.0,0.00012997,2]
[346552680,1735080634428,-2859.18,0.00012997,2]
[346552681,1735080634437,-500.0,0.00012997,2]
[346552682,1735080634447,-501.14542577,0.00012997,2]
[346552683,1735080634456,-500.0,0.00012997,2]
[346552684,1735080634465,-745.2,0.00012997,2]
[346552685,1735080634475,-9655.84,0.00012997,2]
[346552686,1735080634484,-500.0,0.00012997,2]
[346552687,1735080634493,-6630.94,0.00012997,2]
[346552688,1735080634502,-500.0,0.00012997,2]
[346552689,1735080634512,-500.0,0.00012997,2]
[346552690,1735080634521,-673.84,0.00012997,2]
[346552691,1735080634531,-501.0099293,0.00012997,2]
[346552692,1735080634540,-4021.17,0.00012997,2]
[346552693,1735080634549,-500.0,0.00012997,2]
[346552694,1735080634558,-6013.37,0.00012997,2]
[346552695,1735080634567,-569.35,0.00012997,2]
[346552696,1735080634577,-501.76153674,0.00012997,2]
[346552697,1735080634587,-500.0,0.00012997,2]
[346552698,1735080634597,-500.0,0.00012997,2]
[346552699,1735080634606,-700.67,0.00012997,2]
[346552700,1735080634615,-500.0,0.00012997,2]
[346552701,1735080634624,-12450.02,0.00012997,2]
[346552702,1735080634633,-500.0,0.00012997,2]
[346552703,1735080634642,-500.0,0.00012997,2]
[346552704,1735080634651,-500.0,0.00012997,2]
[346552705,1735080634660,-14311.01,0.00012997,2]
[346552706,1735080634670,-789.54,0.00012997,2]
[346552707,1735080634679,-500.0,0.00012997,2]
[346552708,1735080634688,-492.67903662,0.00012997,2]
[346552709,1735080634697,-500.0,0.00012997,2]
[346552710,1735080634706,-3181.62,0.00012997,2]
[346552711,1735080634715,-500.0,0.00012997,2]
[346552712,1735080634724,-711.09,0.00012997,2]
[346552713,1735080634733,-903.3745361,0.00012997,2]
[346552714,1735080634748,-175.7754639,0.00012997,2]
[346552715,1735080634757,-532.11859152,0.00012997,2]
[346552716,1735080634768,-1217.97080579,0.00012997,2]
[346552717,1735080634779,-1281.1799935,0.00012997,2]
[346552718,1735080634791,-1804.71197204,0.00012997,2]
[346552719,1735080634802,-23539.54863715,0.00012997,2]
[346552720,1735080634811,-500.0,0.00012997,2]
[346552721,1735080634820,-244.28415968,0.00012997,2]
[346552722,1735080634829,-500.0,0.00012997,2]
[346552723,1735080634838,-500.0,0.00012997,2]
[346552724,1735080634848,-737.35,0.00012997,2]
[346552725,1735080634857,-500.0,0.00012997,2]
[346552726,1735080634866,-5044.64300317,0.00012997,2]
[346552727,1735080635665,-7406.60228443,0.00012997,2]
[346552728,1735080635700,-1398.56831943,0.00012997,2]
[346552729,1735080635711,-1049.75,0.00012997,2]
[346552730,1735080635722,-254.18373718,0.00012997,2]
[346552731,1735080635733,-2535.55265579,0.00012997,2]
[346552732,1735080635742,-1739.6,0.00012997,2]
[346552733,1735080635751,-500.0,0.00012997,2]
[346552734,1735080635759,-500.0,0.00012997,2]
[346552735,1735080635768,-154.22111134,0.00012997,2]
[346552736,1735080635895,-255.855,0.00012997,2]
[346552737,1735080635907,-805.88388866,0.00012997,2]
[346552738,1735080635917,-222.65995968,0.00012997,2]
[346552739,1735080635953,-903.38703061,0.00012997,2]
[346552740,1735080635969,-1349.84300971,0.00012997,2]
[346552741,1735080635978,-36.50157928,0.00012998,2]
[346552742,1735080635988,-2499.96256852,0.00012998,2]
[346552743,1735080635999,-4129.6583592,0.00012998,2]
[346552744,1735080636008,-6666.122507,0.00012998,2]
[346552745,1735080636018,-6666.122507,0.00012998,2]
[346552746,1735080636027,-666.122507,0.00012998,2]
[346552747,1735080636036,-666.122507,0.00012998,2]
[346552748,1735080636045,-666.122507,0.00012998,2]
[346552749,1735080636054,-666.122507,0.00012998,2]
[346552750,1735080636063,-1186.85,0.00012998,2]
[346552751,1735080636073,-500.17505001,0.00012998,2]
[346552752,1735080636083,-500.0,0.00012998,2]
[346552753,1735080636095,-500.0,0.00012998,2]
[346552754,1735080636104,-500.0,0.00012998,2]
[346552755,1735080636113,-499.0,0.00012998,2]
[346552756,1735080636122,-500.0,0.00012998,2]
[346552757,1735080636132,-764.46,0.00012998,2]
[346552758,1735080636142,-1004.3,0.00012998,2]
[346552759,1735080636151,-500.0,0.00012998,2]
[346552760,1735080636160,-500.0,0.00012998,2]
[346552761,1735080636171,-934.37,0.00012998,2]
[346552762,1735080636180,-500.0,0.00012998,2]
[346552763,1735080636190,-593.37645857,0.00012998,2]
[346552764,1735080636199,-500.0,0.00012998,2]
[346552765,1735080636208,-500.0,0.00012998,2]
[346552766,1735080636217,-624.64,0.00012998,2]
[346552767,1735080636227,-1231.38,0.00012998,2]
[346552768,1735080636236,-2987.36,0.00012998,2]
[346552769,1735080636245,-2041.58,0.00012998,2]
[346552770,1735080636255,-2301.81,0.00012998,2]
[346552771,1735080636267,-2130.35,0.00012998,2]
[346552772,1735080636276,-1465.68,0.00012998,2]
[346552773,1735080636286,-1243.8,0.00012998,2]
[346552774,1735080636296,-173.83082678,0.00012998,2]
[346552775,1735080636305,-903.1,0.00012998,2]
[346552776,1735080636315,-746.59,0.00012998,2]
[346552777,1735080636325,-1294.62,0.00012998,2]
[346552778,1735080636334,-778.43,0.00012998,2]
[346552779,1735080636344,-500.0,0.00012998,2]
[346552780,1735080636353,-500.0,0.00012998,2]
[346552781,1735080636362,-500.0,0.00012998,2]
[346552782,1735080636372,-500.0,0.00012998,2]
[346552783,1735080636381,-2030.6,0.00012998,2]
[346552784,1735080636390,-940.83,0.00012998,2]
[346552785,1735080636399,-500.0,0.00012998,2]
[346552786,1735080636408,-845.4,0.00012998,2]
[346552787,1735080636417,-500.0,0.00012998,2]
[346552788,1735080636426,-500.0,0.00012998,2]
[346552789,1735080636435,-500.0,0.00012998,2]
[346552790,1735080636445,-1825.06,0.00012998,2]
[346552791,1735080636456,-501.52661943,0.00012998,2]
[346552792,1735080636466,-500.0,0.00012998,2]
[346552793,1735080636477,-2342.75,0.00012998,2]
[346552794,1735080636486,-500.0,0.00012998,2]
[346552795,1735080636495,-689.9,0.00012998,2]
[346552796,1735080636505,-1366.16,0.00012998,2]
[346552797,1735080636514,-500.0,0.00012998,2]
[346552798,1735080636523,-2522.02,0.00012998,2]
[346552799,1735080636532,-709.5,0.00012998,2]
[346552800,1735080636542,-823.43,0.00012998,2]
[346552801,1735080636551,-500.0,0.00012998,2]
[346552802,1735080636561,-1320.85,0.00012998,2]
[346552803,1735080636571,-664.81,0.00012998,2]
[346552804,1735080636580,-1005.34,0.00012998,2]
[346552805,1735080636589,-540.88,0.00012998,2]
[346552806,1735080636599,-816.38,0.00012998,2]
[346552807,1735080636609,-500.0,0.00012998,2]
[346552808,1735080636618,-651.72,0.00012998,2]
[346552809,1735080636627,-949.22,0.00012998,2]
[346552810,1735080636636,-1131.02,0.00012998,2]
[346552811,1735080636646,-501.61681047,0.00012998,2]
[346552812,1735080636656,-3486.61,0.00012998,2]
[346552813,1735080636665,-1795.5,0.00012998,2]
[346552814,1735080636674,-1925.21,0.00012998,2]
[346552815,1735080636683,-1724.41,0.00012998,2]
[346552816,1735080636692,-1798.3,0.00012998,2]
[346552817,1735080636892,-659.17,0.00012998,2]
[346552818,1735080636903,-1454.76,0.00012998,2]
[346552819,1735080636912,-2797.8,0.00012998,2]
[346552820,1735080636921,-2826.39,0.00012998,2]
[346552821,1735080636931,-1307.06,0.00012998,2]
[346552822,1735080636941,-1090.66,0.00012998,2]
[346552823,1735080636950,-1099.67,0.00012998,2]
[346552824,1735080636959,-904.22,0.00012998,2]
[346552825,1735080636970,-1834.09,0.00012998,2]
[346552826,1735080636980,-2288.7,0.00012998,2]
[346552827,1735080636989,-500.0,0.00012998,2]
[346552828,1735080636999,-913.51,0.00012998,2]
[346552829,1735080637008,-1559.7,0.00012998,2]
[346552830,1735080637017,-500.0,0.00012998,2]
[346552831,1735080637026,-864.41,0.00012998,2]
[346552832,1735080637035,-500.0,0.00012998,2]
[346552833,1735080637044,-500.0,0.00012998,2]
[346552834,1735080637053,-1374.5937296,0.00012998,2]
[346552835,1735080637070,-935.9062704,0.00012998,2]
[346552836,1735080637080,-660.69,0.00012998,2]
[346552837,1735080637090,-4822.26,0.00012998,2]
[346552838,1735080637101,-2101.0,0.00012998,2]
[346552839,1735080637111,-1232.25,0.00012998,2]
[346552840,1735080637120,-1874.57,0.00012998,2]
[346552841,1735080637130,-2794.62,0.00012998,2]
[346552842,1735080637139,-1846.86,0.00012998,2]
[346552843,1735080637150,-647.13,0.00012998,2]
[346552844,1735080637159,-1652.85,0.00012998,2]
[346552845,1735080637169,-4065.43,0.00012998,2]
[346552846,1735080637180,-1800.69,0.00012998,2]
[346552847,1735080637189,-1816.94,0.00012998,2]
[346552848,1735080637199,-2005.88,0.00012998,2]
[346552849,1735080637208,-500.0,0.00012998,2]
[346552850,1735080637218,-2800.3,0.00012998,2]
[346552851,1735080637228,-6013.37,0.00012998,2]
[346552852,1735080637238,-6013.37,0.00012998,2]
[346552853,1735080637247,-6013.37,0.00012998,2]
[346552854,1735080637257,-6013.37,0.00012998,2]
[346552855,1735080637266,-6013.37,0.00012998,2]
[346552856,1735080637276,-6013.37,0.00012998,2]
[346552857,1735080637285,-2916.44,0.00012998,2]
[346552858,1735080637295,-1933.0,0.00012998,2]
[346552859,1735080637304,-2094.16,0.00012998,2]
[346552860,1735080637313,-665.17,0.00012998,2]
[346552861,1735080637323,-5782.67,0.00012998,2]
[346552862,1735080637332,-573.08338053,0.00012998,2]
[346552863,1735080637342,-500.0,0.00012998,2]
[346552864,1735080637353,-221.3748646,0.00012998,2]
[346552865,1735080637362,-161.34898506,0.00012998,2]
[346552866,1735080637371,-2991.28,0.00012998,2]
[346552867,1735080637380,-1325.87,0.00012998,2]
[346552869,1735080637390,-6666.122507,0.00012999,2]
[346552871,1735080637399,-6666.122507,0.00012999,2]
[346552872,1735080637409,-6666.122507,0.00012999,2]
[346552873,1735080637417,-6666.122507,0.00012999,2]
[346552874,1735080637427,-6666.122507,0.00012999,2]
[346552875,1735080637435,-6666.122507,0.00012999,2]
[346552876,1735080637444,-6666.122507,0.00012999,2]
[346552877,1735080637454,-1388.84793337,0.00012999,3]
[346552878,1735080637463,-1388.84793337,0.00012999,3]
[346552879,1735080637473,-1388.84793337,0.00012999,3]
[346552880,1735080637484,-1388.84793337,0.00012999,3]
[346552881,1735080637494,-1388.84793337,0.00012999,3]
[346552882,1735080637503,-1388.84793337,0.00012999,3]
[346552883,1735080637513,-1388.84793337,0.00012999,3]
[346552884,1735080637522,-1388.84793337,0.00012999,3]
[346552885,1735080637531,-1388.84793337,0.00012999,3]
[346552886,1735080637540,-1388.84793337,0.00012999,3]
[346552887,1735080637549,-1388.84793337,0.00012999,3]
[346552888,1735080637558,-1388.84793334,0.00012999,3]
[346552889,1735080637567,-503.01146539,0.00012999,2]
[346552890,1735080637576,-500.0,0.00012999,2]
[346552891,1735080637586,-500.0,0.00012999,2]
[346552892,1735080637596,-500.0,0.00012999,2]
[346552893,1735080637605,-500.65655703,0.00012999,2]
[346552894,1735080637614,-1018.66,0.00012999,2]
[346552895,1735080637623,-500.0,0.00012999,2]
[346552896,1735080637633,-803.11,0.00012999,2]
[346552897,1735080637642,-1619.34,0.00012999,2]
[346552898,1735080637651,-500.0,0.00012999,2]
[346552899,1735080637660,-500.0,0.00012999,2]
[346552900,1735080637670,-500.0,0.00012999,2]
[346552901,1735080637679,-789.25,0.00012999,2]
[346552902,1735080637688,-500.0,0.00012999,2]
[346552903,1735080637697,-500.0,0.00012999,2]
[346552904,1735080637706,-500.0,0.00012999,2]
[346552905,1735080637715,-500.0,0.00012999,2]
[346552906,1735080637724,-500.0,0.00012999,2]
[346552907,1735080637734,-500.0,0.00012999,2]
[346552908,1735080637745,-500.0,0.00012999,2]
[346552909,1735080637754,-500.0,0.00012999,2]
[346552910,1735080637763,-500.0,0.00012999,2]
[346552911,1735080637773,-500.0,0.00012999,2]
[346552912,1735080637782,-1091.65,0.00012999,2]